[Event "Live Chess"]
[Site "Chess.com"]
[Date "2023.05.21"]
[Round "-"]
[White "Ferrarifan27"]
[Black "Ian-Morley"]
[Result "1-0"]
[WhiteElo "2067"]
[BlackElo "1058"]
[TimeControl "300"]
[EndTime "6:23:03 PDT"]
[Termination "Ferrarifan27 won by resignation"]

1. e4 {[%clk 0:04:58]} 1... d5 {[%clk 0:04:58]} 2. exd5 {[%clk 0:04:56.4]} 2...
Qxd5 {[%clk 0:04:57.2]} 3. Nc3 {[%clk 0:04:54.1]} 3... Qe6+ {[%clk 0:04:54.1]}
4. Be2 {[%clk 0:04:52.1]} 4... Nf6 {[%clk 0:04:53.2]} 5. d4 {[%clk 0:04:50.3]}
5... c6 {[%clk 0:04:51.8]} 6. Nf3 {[%clk 0:04:48.2]} 6... Nbd7 {[%clk
0:04:49.2]} 7. O-O {[%clk 0:04:46.7]} 7... Nd5 {[%clk 0:04:47.3]} 8. Nxd5 {[%clk
0:04:43.6]} 8... Qxd5 {[%clk 0:04:46.4]} 9. Re1 {[%clk 0:04:42]} 9... Nf6 {[%clk
0:04:44.5]} 10. Ne5 {[%clk 0:04:25.5]} 10... e6 {[%clk 0:04:35.8]} 11. Bf3
{[%clk 0:04:18.1]} 11... Qd8 {[%clk 0:04:33.6]} 12. Nxc6 {[%clk 0:04:10.7]}
12... bxc6 {[%clk 0:04:32.5]} 13. Bxc6+ {[%clk 0:04:10.6]} 13... Bd7 {[%clk
0:04:29.9]} 14. Bxa8 {[%clk 0:04:09.1]} 14... Qxa8 {[%clk 0:04:29.5]} 15. Bg5
{[%clk 0:04:06.6]} 15... Be7 {[%clk 0:04:27.9]} 16. Bxf6 {[%clk 0:03:56.3]}
16... Bxf6 {[%clk 0:04:26.2]} 17. d5 {[%clk 0:03:54.8]} 17... O-O {[%clk
0:04:23.4]} 18. dxe6 {[%clk 0:03:52.6]} 18... Bxe6 {[%clk 0:04:22.4]} 19. c3
{[%clk 0:03:51.9]} 19... Qd5 {[%clk 0:04:15.8]} 20. Qxd5 {[%clk 0:03:48.6]}
20... Bxd5 {[%clk 0:04:15]} 21. a3 {[%clk 0:03:47.1]} 21... h6 {[%clk
0:04:02.6]} 22. Rad1 {[%clk 0:03:45.2]} 22... Be6 {[%clk 0:04:00.2]} 23. Rd2
{[%clk 0:03:38.6]} 23... a5 {[%clk 0:03:58.8]} 24. g3 {[%clk 0:03:37.5]} 24...
Rb8 {[%clk 0:03:57]} 25. Re4 {[%clk 0:03:33.6]} 25... Bf5 {[%clk 0:03:50.7]} 26.
Ra4 {[%clk 0:03:30.3]} 26... Be4 {[%clk 0:03:39.7]} 27. Rxe4 {[%clk 0:03:27.9]}
27... g5 {[%clk 0:03:29.7]} 28. Ra4 {[%clk 0:03:21.6]} 28... Bxc3 {[%clk
0:03:25]} 29. bxc3 {[%clk 0:03:19.9]} 29... Rb1+ {[%clk 0:03:24.1]} 30. Kg2
{[%clk 0:03:18.6]} 1-0

[Event "Live Chess"]
[Site "Chess.com"]
[Date "2023.05.21"]
[Round "-"]
[White "matt1979"]
[Black "MarkLim1"]
[Result "0-1"]
[WhiteElo "1522"]
[BlackElo "1712"]
[TimeControl "300"]
[EndTime "6:23:09 PDT"]
[Termination "MarkLim1 won by resignation"]

1. f4 {[%clk 0:04:56.9]} 1... d5 {[%clk 0:04:58.3]} 2. e3 {[%clk 0:04:52.4]}
2... Nf6 {[%clk 0:04:57.5]} 3. Nf3 {[%clk 0:04:50.1]} 3... Bg4 {[%clk
0:04:56.6]} 4. h3 {[%clk 0:04:47.1]} 4... Bxf3 {[%clk 0:04:55.8]} 5. Qxf3 {[%clk
0:04:45.9]} 5... Nc6 {[%clk 0:04:55.1]} 6. Bb5 {[%clk 0:04:44.2]} 6... e6 {[%clk
0:04:53.9]} 7. O-O {[%clk 0:04:41.7]} 7... Bd6 {[%clk 0:04:52.1]} 8. d3 {[%clk
0:04:39.1]} 8... O-O {[%clk 0:04:50.2]} 9. Bxc6 {[%clk 0:04:37.3]} 9... bxc6
{[%clk 0:04:49.3]} 10. b3 {[%clk 0:04:36.1]} 10... Rb8 {[%clk 0:04:48.2]} 11.
Bb2 {[%clk 0:04:34.6]} 11... c5 {[%clk 0:04:47.1]} 12. Nd2 {[%clk 0:04:28.4]}
12... a5 {[%clk 0:04:46.1]} 13. a4 {[%clk 0:04:26.7]} 13... Qd7 {[%clk
0:04:39.3]} 14. Be5 {[%clk 0:04:19.1]} 14... Be7 {[%clk 0:04:35.5]} 15. Qg3
{[%clk 0:04:11.3]} 15... g6 {[%clk 0:04:29.8]} 16. Nf3 {[%clk 0:04:02.5]} 16...
Nh5 {[%clk 0:04:27.6]} 17. Qg4 {[%clk 0:03:59.3]} 17... f6 {[%clk 0:04:22.5]}
18. Nh4 {[%clk 0:03:34]} 18... fxe5 {[%clk 0:04:19.1]} 19. Nxg6 {[%clk
0:03:31.1]} 19... hxg6 {[%clk 0:04:17.8]} 20. Qxg6+ {[%clk 0:03:26]} 20... Ng7
{[%clk 0:04:16.5]} 21. Rf3 {[%clk 0:03:22.3]} 21... Rf6 {[%clk 0:04:12.4]} 22.
Qg3 {[%clk 0:03:18.2]} 22... exf4 {[%clk 0:04:09.4]} 23. exf4 {[%clk 0:03:16.2]}
23... c4 {[%clk 0:04:06.5]} 24. Re1 {[%clk 0:03:11.5]} 24... cxb3 {[%clk
0:04:01.5]} 25. cxb3 {[%clk 0:03:09.4]} 25... Rxb3 {[%clk 0:03:59.3]} 26. Qg4
{[%clk 0:02:58.2]} 26... Bb4 {[%clk 0:03:54.1]} 27. Ref1 {[%clk 0:02:52.7]}
27... Qxa4 {[%clk 0:03:29.6]} 28. Rg3 {[%clk 0:02:47.9]} 28... Rf7 {[%clk
0:03:23.5]} 29. f5 {[%clk 0:02:38.7]} 29... Bc5+ {[%clk 0:03:19.3]} 30. Kh2
{[%clk 0:02:36.7]} 30... Qxg4 {[%clk 0:03:17.6]} 31. Rxg4 {[%clk 0:02:32]} 31...
exf5 {[%clk 0:03:13.9]} 0-1

[Event "Live Chess"]
[Site "Chess.com"]
[Date "2023.05.21"]
[Round "-"]
[White "Brooms1989"]
[Black "DoYouLikeCurry"]
[Result "0-1"]
[WhiteElo "1155"]
[BlackElo "1450"]
[TimeControl "300"]
[EndTime "6:23:25 PDT"]
[Termination "DoYouLikeCurry won by checkmate"]

1. e4 {[%clk 0:04:58.4]} 1... c6 {[%clk 0:04:58.7]} 2. d4 {[%clk 0:04:55.6]}
2... d5 {[%clk 0:04:57.8]} 3. f3 {[%clk 0:04:55.1]} 3... dxe4 {[%clk 0:04:56.1]}
4. fxe4 {[%clk 0:04:55]} 4... e5 {[%clk 0:04:54.6]} 5. Nf3 {[%clk 0:04:51]} 5...
Bg4 {[%clk 0:04:52.6]} 6. dxe5 {[%clk 0:04:49.7]} 6... Qxd1+ {[%clk 0:04:50.6]}
7. Kxd1 {[%clk 0:04:49.6]} 7... Nd7 {[%clk 0:04:48.4]} 8. Bf4 {[%clk 0:04:44.8]}
8... g5 {[%clk 0:04:43.7]} 9. Bg3 {[%clk 0:04:39]} 9... h5 {[%clk 0:04:39.1]}
10. h3 {[%clk 0:04:37.7]} 10... Bxf3+ {[%clk 0:04:37.8]} 11. gxf3 {[%clk
0:04:36.1]} 11... h4 {[%clk 0:04:36.8]} 12. Bh2 {[%clk 0:04:35]} 12... O-O-O
{[%clk 0:04:32.3]} 13. Ke2 {[%clk 0:04:33.3]} 13... Bc5 {[%clk 0:04:29.3]} 14.
Nc3 {[%clk 0:04:31.7]} 14... f6 {[%clk 0:04:20.6]} 15. Na4 {[%clk 0:04:20.7]}
15... Bb6 {[%clk 0:04:16.2]} 16. Nxb6+ {[%clk 0:04:19.3]} 16... Nxb6 {[%clk
0:04:14.7]} 17. exf6 {[%clk 0:04:14.8]} 17... Nxf6 {[%clk 0:04:13.5]} 18. Bg2
{[%clk 0:04:10.4]} 18... Nc4 {[%clk 0:04:11.2]} 19. b3 {[%clk 0:04:07.2]} 19...
Rd2+ {[%clk 0:04:09]} 20. Kf1 {[%clk 0:04:04.8]} 20... Ne3+ {[%clk 0:04:07.7]}
21. Kg1 {[%clk 0:04:03.1]} 21... Rxg2# {[%clk 0:04:05.9]} 0-1

[Event "Live Chess"]
[Site "Chess.com"]
[Date "2023.05.21"]
[Round "-"]
[White "LL220284LL"]
[Black "mattihelenius2"]
[Result "1-0"]
[WhiteElo "2270"]
[BlackElo "491"]
[TimeControl "300"]
[EndTime "6:23:43 PDT"]
[Termination "LL220284LL won by resignation"]

1. b3 {[%clk 0:04:58.3]} 1... e5 {[%clk 0:04:58.4]} 2. Bb2 {[%clk 0:04:58.2]}
2... d5 {[%clk 0:04:57.2]} 3. Bxe5 {[%clk 0:04:55.2]} 3... Nc6 {[%clk
0:04:56.1]} 4. Bb2 {[%clk 0:04:53.8]} 4... Nf6 {[%clk 0:04:52.8]} 5. Nf3 {[%clk
0:04:51.6]} 5... Bf5 {[%clk 0:04:52.3]} 6. e3 {[%clk 0:04:50.4]} 6... Bd6 {[%clk
0:04:50]} 7. Bb5 {[%clk 0:04:49.8]} 7... a6 {[%clk 0:04:48.4]} 8. Bxc6+ {[%clk
0:04:47.4]} 8... bxc6 {[%clk 0:04:46.2]} 9. d4 {[%clk 0:04:47.3]} 9... Qe7
{[%clk 0:04:44.8]} 10. Nbd2 {[%clk 0:04:46.6]} 10... Ne4 {[%clk 0:04:41.3]} 11.
c4 {[%clk 0:04:45.9]} 11... dxc4 {[%clk 0:04:39.1]} 12. bxc4 {[%clk 0:04:44]}
12... c5 {[%clk 0:04:33]} 13. d5 {[%clk 0:04:41.2]} 13... Bg4 {[%clk 0:04:29.5]}
14. h3 {[%clk 0:04:38.2]} 14... Bxf3 {[%clk 0:04:28.1]} 15. Nxf3 {[%clk
0:04:38.1]} 15... Qf6 {[%clk 0:04:19.4]} 16. Bxf6 {[%clk 0:04:36.4]} 1-0

[Event "Live Chess"]
[Site "Chess.com"]
[Date "2023.05.21"]
[Round "-"]
[White "LanceMaster23"]
[Black "ClassyChameleon"]
[Result "1-0"]
[WhiteElo "1948"]
[BlackElo "1083"]
[TimeControl "300"]
[EndTime "6:23:48 PDT"]
[Termination "LanceMaster23 won by checkmate"]

1. Nf3 {[%clk 0:04:58.7]} 1... d5 {[%clk 0:04:54.2]} 2. d4 {[%clk 0:04:57.4]}
2... Nc6 {[%clk 0:04:51.5]} 3. Bf4 {[%clk 0:04:56.8]} 3... Bf5 {[%clk 0:04:44]}
4. e3 {[%clk 0:04:54.8]} 4... e6 {[%clk 0:04:42.9]} 5. c3 {[%clk 0:04:52.6]}
5... Nf6 {[%clk 0:04:38.6]} 6. Qb3 {[%clk 0:04:51.5]} 6... Na5 {[%clk
0:04:32.3]} 7. Qd1 {[%clk 0:04:33.1]} 7... Bd6 {[%clk 0:04:21.1]} 8. Bg3 {[%clk
0:04:31.5]} 8... Bxg3 {[%clk 0:04:19.1]} 9. hxg3 {[%clk 0:04:31.4]} 9... Bg4
{[%clk 0:04:10.5]} 10. Nbd2 {[%clk 0:04:30.7]} 10... Nc4 {[%clk 0:04:03.8]} 11.
Nxc4 {[%clk 0:04:28.8]} 11... dxc4 {[%clk 0:04:02.9]} 12. Bxc4 {[%clk
0:04:28.4]} 12... Ne4 {[%clk 0:04:00.2]} 13. Rh4 {[%clk 0:03:55]} 13... f5
{[%clk 0:03:55.7]} 14. Bxe6 {[%clk 0:03:51.5]} 14... Ng5 {[%clk 0:03:45.3]} 15.
Qb3 {[%clk 0:03:06]} 15... Bxf3 {[%clk 0:03:29]} 16. gxf3 {[%clk 0:02:36.2]}
16... Qe7 {[%clk 0:03:27.1]} 17. Qxb7 {[%clk 0:01:57.1]} 17... Nxe6 {[%clk
0:03:19.9]} 18. Qxa8+ {[%clk 0:01:35.9]} 18... Nd8 {[%clk 0:03:18.7]} 19. O-O-O
{[%clk 0:01:31.2]} 19... O-O {[%clk 0:03:17.5]} 20. Qd5+ {[%clk 0:01:28.2]}
20... Nf7 {[%clk 0:03:15.5]} 21. Qxf5 {[%clk 0:01:24.2]} 21... Nd6 {[%clk
0:03:07.9]} 22. Qxh7+ {[%clk 0:01:11.6]} 22... Kf7 {[%clk 0:03:04.5]} 23. Rf4+
{[%clk 0:01:10.8]} 23... Ke8 {[%clk 0:03:01.5]} 24. Qg6+ {[%clk 0:01:04.6]}
24... Kd7 {[%clk 0:02:56]} 25. Rxf8 {[%clk 0:00:58.9]} 25... Qxf8 {[%clk
0:02:54.4]} 26. Rh1 {[%clk 0:00:57.9]} 26... Nf5 {[%clk 0:02:37]} 27. Qg4 {[%clk
0:00:51.9]} 27... g6 {[%clk 0:02:30.3]} 28. e4 {[%clk 0:00:50.7]} 28... Kc6
{[%clk 0:02:26.5]} 29. exf5 {[%clk 0:00:49.1]} 29... Kb7 {[%clk 0:02:19.7]} 30.
Qe4+ {[%clk 0:00:46.2]} 30... Kb6 {[%clk 0:02:15.3]} 31. Qe6+ {[%clk 0:00:39]}
31... Kb7 {[%clk 0:02:12.4]} 32. Qxg6 {[%clk 0:00:29.7]} 32... Qe7 {[%clk
0:02:01.7]} 33. Qe6 {[%clk 0:00:24.1]} 33... Qf8 {[%clk 0:01:56.2]} 34. Qd5+
{[%clk 0:00:20.1]} 34... Kb6 {[%clk 0:01:53.6]} 35. Rh7 {[%clk 0:00:15.8]} 35...
Qd6 {[%clk 0:01:47.1]} 36. Qxd6+ {[%clk 0:00:14]} 36... cxd6 {[%clk 0:01:46.5]}
37. f6 {[%clk 0:00:13.3]} 37... Kc6 {[%clk 0:01:45.4]} 38. f7 {[%clk 0:00:13.2]}
38... a6 {[%clk 0:01:42.1]} 39. f8=Q {[%clk 0:00:13.1]} 39... a5 {[%clk
0:01:41.1]} 40. Qc8+ {[%clk 0:00:11.7]} 40... Kd5 {[%clk 0:01:40.5]} 41. Rh5#
{[%clk 0:00:10.9]} 1-0

[Event "Live Chess"]
[Site "Chess.com"]
[Date "2023.05.21"]
[Round "-"]
[White "Olisingapore"]
[Black "nigelst"]
[Result "0-1"]
[WhiteElo "1774"]
[BlackElo "1706"]
[TimeControl "300"]
[EndTime "6:23:48 PDT"]
[Termination "nigelst won by checkmate"]

1. d4 {[%clk 0:04:59.4]} 1... Nf6 {[%clk 0:04:58.2]} 2. c4 {[%clk 0:04:59.3]}
2... e6 {[%clk 0:04:56.9]} 3. g3 {[%clk 0:04:58.9]} 3... Bb4+ {[%clk 0:04:55.2]}
4. Nd2 {[%clk 0:04:57.2]} 4... O-O {[%clk 0:04:50.7]} 5. Bg2 {[%clk 0:04:56.7]}
5... d5 {[%clk 0:04:46.9]} 6. Nf3 {[%clk 0:04:52.7]} 6... Ne4 {[%clk 0:04:44]}
7. O-O {[%clk 0:04:52.2]} 7... Nd7 {[%clk 0:04:38.4]} 8. Nxe4 {[%clk 0:04:48.5]}
8... dxe4 {[%clk 0:04:36.4]} 9. Nd2 {[%clk 0:04:47.9]} 9... Bxd2 {[%clk
0:04:33.8]} 10. Bxd2 {[%clk 0:04:45.5]} 10... Nf6 {[%clk 0:04:31.3]} 11. Qc2
{[%clk 0:04:40.6]} 11... Qxd4 {[%clk 0:04:24.3]} 12. Bg5 {[%clk 0:04:37.3]}
12... h6 {[%clk 0:04:11.4]} 13. Bxf6 {[%clk 0:04:35.2]} 13... Qxf6 {[%clk
0:04:09.8]} 14. Qxe4 {[%clk 0:04:33.5]} 14... c6 {[%clk 0:04:07.6]} 15. b3
{[%clk 0:04:29.4]} 15... Rd8 {[%clk 0:04:02.5]} 16. Rad1 {[%clk 0:04:18.4]}
16... Bd7 {[%clk 0:03:59.9]} 17. Rd3 {[%clk 0:04:13.7]} 17... Be8 {[%clk
0:03:50.7]} 18. Rfd1 {[%clk 0:04:04.4]} 18... Rxd3 {[%clk 0:03:48.8]} 19. Rxd3
{[%clk 0:04:04.3]} 19... Rd8 {[%clk 0:03:45.8]} 20. Rxd8 {[%clk 0:04:00.4]}
20... Qxd8 {[%clk 0:03:44.5]} 21. Qe3 {[%clk 0:03:59]} 21... Qd1+ {[%clk
0:03:35.6]} 22. Bf1 {[%clk 0:03:57.3]} 22... Bd7 {[%clk 0:03:32.1]} 23. Qxa7
{[%clk 0:03:52.2]} 23... e5 {[%clk 0:03:28.7]} 24. Qxb7 {[%clk 0:03:48.9]} 24...
Bh3 {[%clk 0:03:26.3]} 25. Qa8+ {[%clk 0:03:30.6]} 25... Kh7 {[%clk 0:03:24]}
26. Qxc6 {[%clk 0:03:27.7]} 26... Qxf1# {[%clk 0:03:22.5]} 0-1

[Event "Live Chess"]
[Site "Chess.com"]
[Date "2023.05.21"]
[Round "-"]
[White "MaximKris"]
[Black "JoRoSaR"]
[Result "1-0"]
[WhiteElo "1798"]
[BlackElo "1689"]
[TimeControl "300"]
[EndTime "6:23:56 PDT"]
[Termination "MaximKris won by resignation"]

1. e4 {[%clk 0:04:58.6]} 1... c5 {[%clk 0:04:59.5]} 2. Nf3 {[%clk 0:04:57]} 2...
Nc6 {[%clk 0:04:59.2]} 3. Bb5 {[%clk 0:04:54.3]} 3... d6 {[%clk 0:04:53.9]} 4.
O-O {[%clk 0:04:52.3]} 4... Bg4 {[%clk 0:04:52.7]} 5. h3 {[%clk 0:04:49.7]} 5...
Bh5 {[%clk 0:04:51.6]} 6. Nc3 {[%clk 0:04:48.2]} 6... a6 {[%clk 0:04:50.8]} 7.
Bxc6+ {[%clk 0:04:47.1]} 7... bxc6 {[%clk 0:04:50.7]} 8. d4 {[%clk 0:04:46]}
8... cxd4 {[%clk 0:04:49.7]} 9. Qxd4 {[%clk 0:04:45.9]} 9... Bxf3 {[%clk
0:04:48.6]} 10. gxf3 {[%clk 0:04:45.8]} 10... e5 {[%clk 0:04:46.9]} 11. Qc4
{[%clk 0:04:43.3]} 11... Qc7 {[%clk 0:04:46.1]} 12. Nd5 {[%clk 0:04:40.4]} 12...
Qb7 {[%clk 0:04:39]} 13. Nb4 {[%clk 0:04:38]} 13... c5 {[%clk 0:04:31.9]} 14.
Nd5 {[%clk 0:04:36.1]} 14... Ne7 {[%clk 0:04:30.9]} 15. Nxe7 {[%clk 0:04:33.8]}
15... Bxe7 {[%clk 0:04:30.7]} 16. Be3 {[%clk 0:04:31.1]} 16... O-O {[%clk
0:04:29.3]} 17. Rad1 {[%clk 0:04:29.4]} 17... Rad8 {[%clk 0:04:26.9]} 18. b3
{[%clk 0:04:15]} 18... Kh8 {[%clk 0:04:24.5]} 19. Qd5 {[%clk 0:03:59.3]} 19...
Qxd5 {[%clk 0:04:22.1]} 20. Rxd5 {[%clk 0:03:59.2]} 20... f5 {[%clk 0:04:20.8]}
21. c4 {[%clk 0:03:57.1]} 21... fxe4 {[%clk 0:04:19.6]} 22. fxe4 {[%clk
0:03:57]} 22... Rf3 {[%clk 0:04:18.5]} 23. Kg2 {[%clk 0:03:52.3]} 23... Rdf8
{[%clk 0:04:17.7]} 24. a3 {[%clk 0:03:41.7]} 24... Kg8 {[%clk 0:04:15.6]} 25.
Rg1 {[%clk 0:03:16.3]} 25... Kf7 {[%clk 0:03:47.2]} 26. Kxf3 {[%clk 0:02:47.2]}
1-0

[Event "Live Chess"]
[Site "Chess.com"]
[Date "2023.05.21"]
[Round "-"]
[White "slava_ukr"]
[Black "GMMickeyAdams"]
[Result "1/2-1/2"]
[WhiteElo "2333"]
[BlackElo "2780"]
[TimeControl "300"]
[EndTime "6:24:20 PDT"]
[Termination "Game drawn by repetition"]

1. e4 {[%clk 0:04:57.9]} 1... e6 {[%clk 0:04:57.4]} 2. d4 {[%clk 0:04:55.3]}
2... d5 {[%clk 0:04:57.1]} 3. exd5 {[%clk 0:04:52.7]} 3... exd5 {[%clk
0:04:55.4]} 4. Nf3 {[%clk 0:04:49.3]} 4... Bd6 {[%clk 0:04:51.4]} 5. Bd3 {[%clk
0:04:47.7]} 5... Nf6 {[%clk 0:04:47.9]} 6. O-O {[%clk 0:04:46.5]} 6... O-O
{[%clk 0:04:46.3]} 7. Bg5 {[%clk 0:04:43.8]} 7... Bg4 {[%clk 0:04:41.6]} 8. Nbd2
{[%clk 0:04:42.1]} 8... Nbd7 {[%clk 0:04:39.4]} 9. c3 {[%clk 0:04:40.9]} 9... h6
{[%clk 0:04:37.7]} 10. Bh4 {[%clk 0:04:39.5]} 10... Re8 {[%clk 0:04:34.4]} 11.
Qc2 {[%clk 0:04:36.7]} 11... Qe7 {[%clk 0:04:29.3]} 12. Rae1 {[%clk 0:04:33.7]}
12... Qf8 {[%clk 0:04:28.2]} 13. Bg3 {[%clk 0:04:31.4]} 13... Bxg3 {[%clk
0:04:23]} 14. hxg3 {[%clk 0:04:30.4]} 14... Qd6 {[%clk 0:04:21.6]} 15. Bf5
{[%clk 0:04:25.7]} 15... Bxf5 {[%clk 0:04:14.9]} 16. Qxf5 {[%clk 0:04:24.5]}
16... g6 {[%clk 0:04:13.9]} 17. Qf4 {[%clk 0:04:17]} 17... Qxf4 {[%clk
0:04:05.4]} 18. gxf4 {[%clk 0:04:15.7]} 18... Kg7 {[%clk 0:04:00.7]} 19. g3
{[%clk 0:04:12.3]} 19... Ne4 {[%clk 0:03:55.4]} 20. Nxe4 {[%clk 0:03:57.8]}
20... dxe4 {[%clk 0:03:49.4]} 21. Ne5 {[%clk 0:03:54.6]} 21... Nb6 {[%clk
0:03:47.7]} 22. Re2 {[%clk 0:03:45.8]} 22... h5 {[%clk 0:03:42.4]} 23. b3 {[%clk
0:03:43.3]} 23... f6 {[%clk 0:03:35.4]} 24. Nc4 {[%clk 0:03:41.7]} 24... Nxc4
{[%clk 0:03:28.9]} 25. bxc4 {[%clk 0:03:40.3]} 25... f5 {[%clk 0:03:28.1]} 26.
Rb1 {[%clk 0:03:34.6]} 26... b6 {[%clk 0:03:26.2]} 27. a4 {[%clk 0:03:27]} 27...
Re6 {[%clk 0:03:23.6]} 28. Rb5 {[%clk 0:03:16.2]} 28... Rc6 {[%clk 0:03:21.1]}
29. c5 {[%clk 0:03:11.9]} 29... a6 {[%clk 0:03:18.6]} 30. Rb3 {[%clk 0:02:59.5]}
30... bxc5 {[%clk 0:03:16.4]} 31. d5 {[%clk 0:02:58.6]} 31... Rb6 {[%clk
0:03:15.3]} 32. Reb2 {[%clk 0:02:38.5]} 32... Rab8 {[%clk 0:03:00.2]} 33. d6
{[%clk 0:02:22.2]} 33... c4 {[%clk 0:02:08.5]} 34. Rxb6 {[%clk 0:01:36.6]} 34...
cxb6 {[%clk 0:02:05.2]} 35. d7 {[%clk 0:01:34.6]} 35... Rd8 {[%clk 0:02:02.7]}
36. Rxb6 {[%clk 0:01:32.7]} 36... Rxd7 {[%clk 0:02:01.7]} 37. Rxa6 {[%clk
0:01:31.6]} 37... Rd3 {[%clk 0:02:00.3]} 38. Rc6 {[%clk 0:01:27.3]} 38... Rxc3
{[%clk 0:01:59]} 39. a5 {[%clk 0:01:26.4]} 39... Kh6 {[%clk 0:01:53.8]} 40. a6
{[%clk 0:01:24.9]} 40... h4 {[%clk 0:01:49]} 41. Kg2 {[%clk 0:01:23.6]} 41...
hxg3 {[%clk 0:01:45.8]} 42. fxg3 {[%clk 0:01:22.7]} 42... Ra3 {[%clk 0:01:38]}
43. a7 {[%clk 0:01:20.9]} 43... Rxa7 {[%clk 0:01:35.2]} 44. Rxc4 {[%clk
0:01:19.8]} 44... Kh5 {[%clk 0:01:34]} 45. Kh3 {[%clk 0:01:16.4]} 45... g5
{[%clk 0:01:27.8]} 46. Rc5 {[%clk 0:01:06.2]} 46... g4+ {[%clk 0:01:18.8]} 47.
Kg2 {[%clk 0:01:05]} 47... Kg6 {[%clk 0:01:18.3]} 48. Rc6+ {[%clk 0:01:03.9]}
48... Kg7 {[%clk 0:01:17]} 49. Rc5 {[%clk 0:01:02.9]} 49... Rf7 {[%clk
0:01:15.4]} 50. Kf2 {[%clk 0:01:01.2]} 50... Kf6 {[%clk 0:01:14.1]} 51. Rc6+
{[%clk 0:01:00.1]} 51... Ke7 {[%clk 0:01:12.6]} 52. Ra6 {[%clk 0:00:59.2]} 52...
Rf6 {[%clk 0:01:11.3]} 53. Ra7+ {[%clk 0:00:58.1]} 53... Ke6 {[%clk 0:01:09.6]}
54. Ra6+ {[%clk 0:00:57.1]} 54... Kf7 {[%clk 0:01:08.4]} 55. Ra7+ {[%clk
0:00:56.3]} 55... Kg6 {[%clk 0:01:07.4]} 56. Re7 {[%clk 0:00:54]} 56... Rd6
{[%clk 0:01:06.6]} 57. Ra7 {[%clk 0:00:48.3]} 57... Kf6 {[%clk 0:01:05.7]} 58.
Ra5 {[%clk 0:00:46.4]} 58... Rd3 {[%clk 0:01:02.4]} 59. Ra6+ {[%clk 0:00:44.8]}
59... Ke7 {[%clk 0:01:01.3]} 60. Ra7+ {[%clk 0:00:43.8]} 60... Kd6 {[%clk
0:00:57.2]} 61. Ra6+ {[%clk 0:00:41]} 61... Kd5 {[%clk 0:00:50]} 62. Ra5+ {[%clk
0:00:39]} 62... Kd4 {[%clk 0:00:48.9]} 63. Ra4+ {[%clk 0:00:37]} 63... Kc3
{[%clk 0:00:45.9]} 64. Ra3+ {[%clk 0:00:36.2]} 64... Kc2 {[%clk 0:00:39.1]} 65.
Ra2+ {[%clk 0:00:34]} 65... Kc3 {[%clk 0:00:37]} 66. Ra3+ {[%clk 0:00:33.1]}
66... Kc4 {[%clk 0:00:30.4]} 67. Ra4+ {[%clk 0:00:32.2]} 67... Kb5 {[%clk
0:00:28.9]} 68. Ra8 {[%clk 0:00:30.4]} 68... Rf3+ {[%clk 0:00:28]} 69. Kg2
{[%clk 0:00:29.4]} 69... Kc4 {[%clk 0:00:27]} 70. Ra4+ {[%clk 0:00:28]} 70...
Kb3 {[%clk 0:00:25.6]} 71. Ra5 {[%clk 0:00:26.6]} 71... e3 {[%clk 0:00:24.9]}
72. Re5 {[%clk 0:00:25.6]} 72... Kc2 {[%clk 0:00:22.9]} 73. Rxf5 {[%clk
0:00:24.3]} 73... Kd2 {[%clk 0:00:22.1]} 74. Rd5+ {[%clk 0:00:23.5]} 74... Ke1
{[%clk 0:00:20.8]} 75. Rd8 {[%clk 0:00:22.1]} 75... Rf2+ {[%clk 0:00:19.7]} 76.
Kg1 {[%clk 0:00:21.1]} 76... e2 {[%clk 0:00:18.8]} 77. Rd7 {[%clk 0:00:20]}
77... Rf3 {[%clk 0:00:17.9]} 78. Kg2 {[%clk 0:00:19]} 78... Rf2+ {[%clk
0:00:15.9]} 79. Kg1 {[%clk 0:00:18.3]} 79... Rf1+ {[%clk 0:00:15.3]} 80. Kg2
{[%clk 0:00:17.5]} 80... Rf2+ {[%clk 0:00:15]} 81. Kg1 {[%clk 0:00:16.9]}
1/2-1/2